bitfinex/quotes_ETHUSD_20251019
["timestamp","ask_amount","ask_price","bid_price","bid_amount"]
[1760876638154,17.40819443,3920.3,3920.2,1e-08]
[1760876638335,17.84799443,3920.3,3920.2,1e-08]
[1760876638957,19.49293143,3920.3,3920.2,1e-08]
[1760876639116,19.28580243,3920.3,3920.2,1e-08]
[1760876639651,12.60350443,3920.3,3920.2,1e-08]
[1760876639815,7.86345343,3920.3,3920.2,1e-08]
[1760876640014,10.67160443,3920.3,3920.2,1e-08]
[1760876641136,5.27245343,3920.3,3920.2,0.45780001]
[1760876641335,5.27245343,3920.3,3920.1,0.002]
[1760876641336,4.27889026,3920.2,3920.1,0.002]
[1760876641650,5.58048469,3920.2,3920.1,0.002]
[1760876641822,20.65033525,3920.2,3920.1,0.002]
[1760876642024,15.01184125,3920.2,3920.1,0.002]
[1760876642249,5.2662185,3920.2,3920.1,0.002]
[1760876642566,7.4197185,3920.2,3920.1,0.1821]
[1760876642936,7.4207185,3920.2,3920.1,0.1821]
[1760876643349,7.4207185,3920.2,3920.1,0.6399]
[1760876643741,0.54782824,3920.2,3920.1,0.6399]
[1760876644098,0.62753976,3921.8,3920.1,0.6399]
[1760876644099,2.594,3920.4,3920.1,0.6399]
[1760876644353,2.55069782,3920.5,3920.2,0.4578]
[1760876644525,0.76692899,3921.0,3920.2,0.4578]
[1760876644726,0.54477774,3920.9,3920.2,0.4578]
[1760876645127,2.27277774,3921.2,3920.2,0.4578]
[1760876645326,0.54477774,3921.1,3920.3,0.31909119]
[1760876645576,1.728,3920.9,3920.4,0.4488]
[1760876645726,0.54477774,3921.0,3920.4,0.4488]
[1760876645727,2.55050055,3920.8,3920.4,0.4488]
[1760876646134,2.55050055,3920.8,3920.7,0.1823]
[1760876646331,2.55050055,3920.8,3920.7,0.6311]
[1760876646628,4.27843104,3921.0,3920.7,0.6311]
[1760876646830,1.728,3921.2,3920.8,0.4488]
[1760876647022,0.54519419,3921.1,3920.8,0.4488]
[1760876647225,0.54519419,3921.0,3920.8,0.4488]
[1760876647463,2.27319419,3921.3,3920.8,0.4488]
[1760876647656,2.55030847,3921.1,3920.9,0.4488]
[1760876647958,2.55030847,3921.1,3920.7,0.1823]
[1760876647959,1.728,3921.0,3920.7,0.1823]
[1760876648453,0.001,3921.1,3920.7,0.1823]
[1760876648628,0.001,3921.1,3920.8,0.4488]
[1760876649054,0.001,3921.1,3920.7,0.1823]
[1760876649263,0.001,3921.1,3920.9,0.4488]
[1760876649759,0.001,3921.1,3921.0,0.4488]
[1760876651250,0.001,3921.1,3921.0,0.76696547]
[1760876651663,0.001,3921.1,3921.0,0.89416547]
[1760876654172,1.001,3921.1,3921.0,0.89416547]
[1760876654773,1.001,3921.1,3921.0,0.1272]
[1760876655144,3.55130476,3921.1,3921.0,0.1272]
[1760876655339,2.55046339,3920.9,3919.8,0.4297]
[1760876655562,2.55051668,3920.8,3920.7,0.1272]
[1760876656250,2.55051668,3920.8,3920.2,0.4277]
[1760876656251,1.728,3920.6,3920.5,0.1272]
[1760876656452,0.4471,3920.6,3920.1,0.002]
[1760876656656,0.2163,3920.9,3920.2,0.6078]
[1760876656657,1.728,3920.8,3920.2,0.6078]
[1760876656857,2.55049989,3920.8,3920.3,0.5549]
[1760876657058,2.55049989,3920.8,3920.4,0.4277]
[1760876657255,2.55068342,3920.6,3920.3,0.1272]
[1760876657775,2.55057911,3920.7,3920.3,0.1272]
[1760876657976,0.1272,3920.9,3920.4,0.4277]
[1760876658156,1.001,3921.1,3920.5,0.4277]
[1760876658358,2.729,3921.1,3920.7,0.1272]
[1760876658558,1.001,3921.1,3920.8,0.4277]
[1760876658874,1.001,3921.1,3920.9,0.4277]
[1760876659181,1.001,3921.1,3921.0,0.4277]
[1760876659381,1.001,3921.1,3921.0,0.5549]
[1760876661866,1.001,3921.1,3921.0,3.92221526]
[1760876664588,1.001,3921.1,3920.8,2.55046635]
[1760876664789,1.001,3921.1,3920.9,2.595]
[1760876665189,1.001,3921.1,3920.9,3.0227]
[1760876665499,1.001,3921.1,3921.0,2.9780698]
[1760876665999,1.001,3921.1,3921.0,0.4277]
[1760876666295,1.001,3921.1,3920.9,2.595]
[1760876668780,1.001,3921.1,3920.9,5.57313233]
[1760876670711,1.001,3921.1,3920.9,2.595]
[1760876671920,1.001,3921.1,3921.0,0.1272]
[1760876672417,1.4468,3921.1,3921.0,0.1272]
[1760876673182,1.001,3921.1,3921.0,0.1272]
[1760876673416,1.4468,3921.1,3921.0,0.1272]
[1760876673598,1.001,3921.1,3921.0,0.1272]
[1760876676399,1.001,3921.1,3921.0,3.1207698]
[1760876676622,1.001,3921.1,3921.0,3.68789977]
[1760876676923,1.001,3921.1,3921.0,1.13752997]
[1760876677294,1.001,3921.1,3921.0,0.1272]
[1760876677710,1.001,3921.1,3921.0,5.7127698]
[1760876678836,1.001,3921.1,3921.0,6.3463698]
[1760876682312,1.001,3921.1,3921.0,6.2191698]
[1760876682905,0.001,3921.4,3921.3,3.18377468]
[1760876683103,0.001,3921.4,3921.3,4.31573592]
[1760876683322,0.001,3921.4,3921.3,4.75893592]
[1760876684316,0.001,3921.4,3921.3,7.34993592]
[1760876684923,0.4282,3923.4,3921.9,3.18338454]
[1760876685121,0.4272,3923.2,3921.9,5.77438454]
[1760876685336,0.4272,3923.2,3921.9,7.05001077]
[1760876686844,0.001,3923.4,3921.9,7.05001077]
[1760876687042,0.2069,3922.9,3921.9,7.05001077]
[1760876687241,0.4304,3923.0,3921.9,7.05001077]
[1760876688137,0.001,3923.0,3921.9,7.05001077]
[1760876689133,0.6341,3922.8,3921.9,7.05001077]
[1760876690142,0.001,3923.0,3921.9,7.05001077]
[1760876690537,0.2091,3922.9,3921.9,7.05001077]
[1760876690742,0.6341,3922.9,3921.9,7.05001077]
[1760876690910,0.2091,3922.9,3921.9,7.05001077]
[1760876691648,0.6341,3922.9,3921.9,7.05001077]
[1760876692410,0.6341,3922.9,3921.9,7.17721077]
[1760876692812,0.2091,3922.9,3921.9,7.17721077]
[1760876693236,0.6341,3922.9,3921.9,7.17721077]
[1760876694613,0.426,3922.6,3921.9,6.73401077]
[1760876694809,0.425,3922.5,3921.9,6.73401077]
[1760876695355,0.001,3922.6,3921.9,7.17721077]
[1760876695561,0.001,3922.6,3921.9,6.60681077]
[1760876695755,0.426,3922.6,3921.9,6.60681077]
[1760876696060,0.001,3922.6,3921.9,6.60681077]
[1760876696349,0.426,3922.4,3921.9,4.01581077]
[1760876696514,0.425,3922.3,3921.9,6.60381077]
[1760876696728,0.425,3922.3,3921.9,5.97021077]
[1760876697132,0.425,3922.3,3921.9,6.60381077]
[1760876697438,0.001,3922.4,3921.9,6.60381077]
[1760876697644,0.001,3922.4,3921.9,7.04701077]
[1760876698430,0.001,3922.4,3921.9,6.60381077]
[1760876699253,0.426,3922.2,3921.9,6.60381077]
[1760876699746,0.001,3922.2,3921.9,6.60381077]
[1760876700561,0.001,3922.2,3921.9,7.04701077]
[1760876701136,0.001,3922.2,3921.9,10.91401077]
[1760876701568,0.001,3922.2,3921.9,10.47081077]
[1760876702662,0.426,3922.2,3921.9,10.47081077]
[1760876703733,0.001,3922.2,3921.9,12.19881077]
[1760876704073,0.426,3922.0,3921.9,11.36638454]
[1760876704370,0.001,3922.0,3921.9,11.36638454]
[1760876705535,0.001,3922.0,3921.9,11.49358454]
[1760876705739,0.426,3922.0,3921.9,11.49358454]
[1760876706538,0.426,3922.0,3921.9,6.5822]
[1760876707084,0.426,3922.0,3921.9,2.7152]
[1760876711173,0.426,3922.0,3921.9,0.1272]
[1760876711351,2.97571953,3922.0,3921.9,0.1272]
[1760876711547,2.55010272,3921.5,3921.3,2.588]
[1760876711767,0.6782,3921.4,3921.3,2.588]
[1760876712165,0.6782,3921.4,3921.3,2.7152]
[1760876713065,5.27913415,3921.4,3921.3,2.7152]
[1760876713274,1.728,3921.3,3921.0,2.588]
[1760876713475,4.95630965,3921.4,3921.0,2.588]
[1760876713476,2.77080965,3921.4,3921.0,2.588]
[1760876713680,0.4545,3921.2,3921.0,2.588]
[1760876714050,0.4545,3921.1,3921.0,2.588]
[1760876714452,0.4545,3921.1,3920.6,6.456]
[1760876714680,1.728,3921.2,3920.6,2.589]
[1760876714681,0.4545,3921.0,3920.6,2.589]
[1760876715068,0.4545,3920.9,3920.6,2.589]
[1760876715524,0.4545,3921.3,3920.6,5.13961593]
[1760876715771,0.4545,3921.3,3920.9,0.002]
[1760876716449,0.2207,3921.4,3920.9,0.002]
[1760876716651,0.4545,3921.7,3921.1,2.55024988]
[1760876717497,2.55015579,3921.4,3921.0,2.589]
[1760876717705,2.54997583,3921.7,3921.0,2.589]
[1760876717706,0.4545,3921.3,3921.0,2.589]
[1760876717989,0.4545,3921.2,3921.0,2.589]
[1760876718194,2.55005207,3921.5,3921.0,2.589]
[1760876718195,0.4545,3921.1,3921.0,2.589]
[1760876720861,3.00454778,3921.5,3921.0,2.589]
[1760876721061,0.4545,3921.4,3921.0,2.589]
[1760876721390,2.55004778,3921.5,3921.0,2.589]
[1760876721391,0.4545,3921.3,3921.0,2.589]
[1760876722693,2.77056604,3921.8,3921.0,2.589]
[1760876722694,0.2207,3921.8,3921.0,2.589]
[1760876722894,4.27802569,3921.6,3921.0,2.589]
[1760876723094,2.55020496,3921.3,3921.0,2.589]
[1760876723268,0.4545,3921.2,3921.0,2.589]
[1760876723463,0.4545,3921.2,3921.1,0.1272]
[1760876726801,3.00473972,3921.2,3921.1,0.1272]
[1760876727506,4.73273972,3921.2,3921.1,0.1272]
[1760876728814,2.1825,3921.2,3920.9,0.002]
[1760876729005,1.728,3921.2,3920.9,0.1292]
[1760876729477,1.728,3921.2,3920.9,0.002]
[1760876729677,1.728,3921.2,3921.1,0.1272]
[1760876731914,2.1825,3921.2,3921.1,0.1272]
[1760876732115,1.728,3921.2,3921.1,0.1272]
[1760876732887,4.27823972,3921.2,3921.1,0.1272]
[1760876733098,4.73273972,3921.2,3921.1,0.1272]
[1760876734114,2.1825,3921.2,3921.1,0.1272]
[1760876735099,4.73273972,3921.2,3921.1,0.1272]
[1760876737539,1.728,3921.2,3921.1,0.1272]
[1760876739599,4.27823972,3921.2,3921.1,0.1272]
[1760876739803,1.728,3921.2,3921.1,0.1272]
[1760876740032,2.55017273,3921.4,3921.1,0.1272]
[1760876740242,3.09676917,3921.3,3921.1,0.1272]
[1760876740412,2.55017627,3921.3,3921.1,0.1272]
[1760876741015,0.1272,3921.7,3921.1,0.1272]
[1760876741222,2.55005344,3921.5,3921.1,0.1272]
[1760876741401,0.54680996,3921.4,3921.0,0.002]
[1760876741602,0.54680996,3921.3,3921.0,0.002]
[1760876741830,2.55005344,3921.5,3921.3,0.1272]
[1760876742181,0.54709832,3921.4,3921.3,0.1272]
[1760876744971,0.001,3921.9,3921.3,0.5664]
[1760876745136,0.54739808,3921.8,3921.3,0.1272]
[1760876745335,0.54739808,3921.7,3921.4,0.4392]
[1760876745601,0.54739808,3921.6,3921.5,0.4392]
[1760876745931,0.54739808,3921.6,3921.5,0.5664]
[1760876746137,0.54739808,3921.6,3921.5,0.4392]
[1760876746337,0.54737624,3921.8,3921.5,0.5664]
[1760876746549,0.001,3921.9,3921.5,0.49154111]
[1760876746774,0.001,3921.9,3921.8,0.1272]
[1760876750082,0.001,3921.9,3921.8,0.5664]
[1760876750280,0.001,3921.9,3921.8,0.1272]
[1760876755974,3.22838454,3921.9,3921.8,0.1272]
[1760876757181,0.001,3921.9,3921.8,0.1272]
[1760876757509,2.55078454,3921.9,3921.8,0.1272]
[1760876758102,3.01608454,3921.9,3921.8,0.1272]
[1760876759008,3.22838454,3921.9,3921.8,0.1272]
[1760876759785,5.50272912,3921.9,3921.8,0.1272]
[1760876760922,2.55006797,3921.5,3921.1,0.002]
[1760876761317,4.74086797,3921.5,3921.4,0.1272]
[1760876762430,5.28736855,3921.5,3921.4,0.1272]
[1760876762627,5.28736855,3921.5,3921.1,0.002]
[1760876762628,2.55023972,3921.2,3921.1,0.002]
[1760876762834,2.55023972,3921.2,3921.1,0.1292]
[1760876763010,4.74103972,3921.2,3921.1,0.1292]
[1760876763194,5.28750397,3921.2,3921.1,0.002]
[1760876765594,5.4132598,3921.2,3921.1,0.002]
[1760876767225,8.0012598,3921.2,3921.1,0.002]
[1760876769003,5.4132598,3921.2,3921.1,0.002]
[1760876769208,8.0012598,3921.2,3921.1,0.002]
[1760876772109,7.5394598,3921.2,3921.1,0.002]
[1760876772316,7.9898598,3921.2,3921.1,0.002]
[1760876775341,4.9504598,3921.2,3921.1,0.002]
[1760876775547,7.5394598,3921.2,3921.1,0.002]
[1760876775719,4.9504598,3921.2,3921.1,0.002]
[1760876776043,2.589,3921.2,3921.1,0.4434]
[1760876776217,5.13923972,3921.2,3921.1,0.4434]
[1760876776421,6.86723972,3921.2,3921.1,0.4434]
[1760876778258,4.27823972,3921.2,3921.1,0.002]
[1760876778655,6.86723972,3921.2,3921.1,0.002]
[1760876778827,4.27823972,3921.2,3921.1,0.002]
[1760876779024,6.86723972,3921.2,3921.1,0.002]
[1760876781344,4.27823972,3921.2,3921.1,0.002]
[1760876782865,4.72863972,3921.2,3921.1,0.002]
[1760876783278,5.27423536,3921.2,3921.1,0.002]
[1760876784742,11.22414936,3921.2,3921.1,0.002]
[1760876785077,10.75029736,3921.2,3921.1,0.002]
[1760876785646,12.01672836,3921.2,3921.1,0.002]
[1760876786068,12.11897824,3921.2,3921.1,0.002]
[1760876786652,12.09358024,3921.2,3921.1,0.002]
[1760876786874,11.09358024,3921.2,3921.1,0.002]
[1760876787469,10.72324324,3921.2,3921.1,0.002]
[1760876787669,13.16297224,3921.2,3921.1,0.002]
[1760876788650,14.94449224,3921.2,3921.1,0.002]
[1760876788848,14.47286224,3921.2,3921.1,0.002]
[1760876789070,13.47286224,3921.2,3921.1,0.002]
[1760876789863,13.84570924,3921.2,3921.1,0.002]
[1760876790380,14.32498102,3921.2,3921.1,0.002]
[1760876790558,13.84570924,3921.2,3921.1,0.002]
[1760876790762,13.19333824,3921.2,3921.1,0.002]
[1760876791756,14.77465624,3921.2,3921.1,0.002]
[1760876791967,14.83573724,3921.2,3921.1,0.002]
[1760876793067,14.99905824,3921.2,3921.1,0.002]
[1760876793987,7.96448524,3921.2,3921.1,0.002]
[1760876794289,15.10789824,3921.2,3921.1,0.002]
[1760876794791,12.51989824,3921.2,3921.1,0.002]
[1760876794970,15.10789824,3921.2,3921.1,0.002]
[1760876795289,15.14693424,3921.2,3921.1,0.002]
[1760876795686,12.40002724,3921.2,3921.1,0.002]
[1760876796292,7.51408524,3921.2,3921.1,0.002]
[1760876796488,4.92608524,3921.2,3921.1,0.002]
[1760876796788,7.51408524,3921.2,3921.1,0.4532]
[1760876796979,7.51408524,3921.2,3921.1,0.002]
[1760876797290,4.82383536,3921.2,3921.1,0.002]
[1760876797495,5.68383536,3921.2,3921.1,0.4532]
[1760876798273,7.41183536,3921.2,3921.1,0.4532]
[1760876802712,4.82383536,3921.2,3921.1,0.4532]
[1760876803208,7.41183536,3921.2,3921.1,0.4532]
[1760876803718,7.41183536,3921.2,3921.1,0.002]
[1760876805614,7.41183536,3921.2,3921.1,0.4532]
[1760876806397,4.82383536,3921.2,3921.1,0.4532]
[1760876806602,2.27359564,3921.2,3921.1,0.5804]
[1760876807221,1.728,3921.2,3921.1,0.5804]
[1760876807804,2.55013343,3921.4,3921.1,0.5804]
[1760876808004,2.55013343,3921.4,3921.2,0.47670239]
[1760876808204,2.55003915,3921.6,3921.2,0.4512]
[1760876808404,1.728,3921.8,3921.3,0.1272]
[1760876808613,1.728,3921.6,3921.5,0.1272]
[1760876808834,0.54740396,3921.6,3921.5,0.1272]
[1760876809138,2.5499796,3921.6,3921.5,0.5784]
[1760876809303,0.001,3921.9,3921.5,0.5784]
[1760876809505,0.54733992,3921.8,3921.6,0.4512]
[1760876809706,2.27533992,3921.7,3921.1,0.002]
[1760876809921,1.728,3921.7,3921.2,0.4512]
[1760876810121,1.728,3921.7,3921.6,0.1272]
[1760876810324,2.54991457,3921.7,3921.6,0.5784]
[1760876810518,2.54991457,3921.7,3921.6,0.1272]
[1760876811417,2.54991457,3921.7,3921.1,0.002]
[1760876811418,2.55023972,3921.2,3921.1,0.002]
[1760876811606,2.55023972,3921.2,3921.1,0.1292]
[1760876812209,4.27823972,3921.2,3921.1,0.002]
[1760876812638,4.67503972,3921.2,3921.1,0.002]
[1760876813220,4.27823972,3921.2,3921.1,0.002]
[1760876817074,4.67503972,3921.2,3921.1,0.002]
[1760876818010,5.22200418,3921.2,3921.1,0.002]
[1760876818251,4.82520418,3921.2,3921.1,0.002]
[1760876818838,5.22200418,3921.2,3921.1,0.002]
[1760876819210,5.35120418,3921.2,3921.1,0.002]
[1760876826179,7.54140418,3921.2,3921.1,0.002]
[1760876826380,4.95440418,3921.2,3921.1,0.002]
[1760876826582,7.54140418,3921.2,3921.1,0.002]
[1760876827478,5.08160418,3921.2,3921.1,0.002]
[1760876827679,7.66860418,3921.2,3921.1,0.002]
[1760876830151,4.95440418,3921.2,3921.1,0.002]
[1760876830461,7.93620418,3921.2,3921.1,0.002]
[1760876830661,8.0384436,3921.2,3921.1,0.002]
[1760876831183,7.6416436,3921.2,3921.1,0.002]
[1760876831379,8.0384436,3921.2,3921.1,0.002]
[1760876832590,7.6416436,3921.2,3921.1,0.002]
[1760876833197,5.0546436,3921.2,3921.1,0.002]
[1760876833399,7.6416436,3921.2,3921.1,0.002]
[1760876834064,8.0384436,3921.2,3921.1,0.002]
[1760876834264,7.6416436,3921.2,3921.1,0.002]
[1760876834464,8.0384436,3921.2,3921.1,0.002]
[1760876834862,8.0384436,3921.2,3920.1,0.002]
[1760876834863,5.09140388,3921.2,3920.1,0.002]
[1760876835197,6.99880026,3920.2,3920.1,0.002]
[1760876835384,10.13276472,3920.2,3920.1,0.002]
[1760876835557,7.54576472,3920.2,3920.1,0.002]
[1760876835757,10.13276472,3920.2,3920.1,0.002]
[1760876835974,17.83718472,3920.2,3920.1,0.002]
[1760876837093,17.83903272,3920.2,3920.1,0.002]
[1760876837988,8.20785472,3920.2,3920.1,0.002]
[1760876838201,19.59912972,3920.2,3920.1,0.002]
[1760876839293,19.66809172,3920.2,3920.1,0.002]
[1760876840105,20.58873272,3920.2,3920.1,0.002]
[1760876840306,20.58701572,3920.2,3920.1,0.002]
[1760876841394,19.64159772,3920.2,3920.1,0.002]
[1760876842307,11.82473772,3920.2,3920.1,0.002]
[1760876842500,10.79097772,3920.2,3920.1,0.002]
[1760876842696,8.20397772,3920.2,3920.1,0.002]
[1760876842882,9.85191572,3920.2,3920.1,0.002]
[1760876843283,9.80191572,3920.2,3920.1,0.002]
[1760876843494,9.80291572,3920.2,3920.1,0.002]
[1760876844194,7.21491572,3920.2,3920.1,0.002]
[1760876844531,7.41385472,3920.2,3920.1,0.6564]
[1760876846045,2.27496446,3920.2,3920.1,0.6564]
[1760876846205,2.55046608,3920.9,3920.1,0.6564]
[1760876846526,3.13388555,3920.8,3920.1,0.31428267]
[1760876846729,2.55089026,3920.2,3920.1,0.31428267]
[1760876846893,2.55089026,3920.2,3920.1,0.78148267]
[1760876847526,2.55089026,3920.2,3920.1,0.31428267]
[1760876847824,2.55089026,3920.2,3920.1,0.78148267]
[1760876848027,4.27889026,3920.2,3919.8,0.002]
[1760876848204,2.55089026,3920.2,3919.9,0.4672]
[1760876848414,1.728,3920.1,3919.9,0.4672]
[1760876848599,2.55108548,3919.9,3919.8,0.002]
[1760876848996,2.55108548,3919.9,3919.8,0.4692]
[1760876850036,2.55108548,3919.9,3919.8,0.002]
[1760876851528,4.27908548,3919.9,3919.8,0.002]
[1760876855533,6.86608548,3919.9,3919.8,0.002]
[1760876856232,7.77885726,3919.9,3919.8,0.002]
[1760876856429,7.51578548,3919.9,3919.8,0.002]
[1760876856738,8.06210866,3919.9,3919.8,0.002]
[1760876858205,8.18930866,3919.9,3919.8,0.002]
[1760876858721,7.53960866,3919.9,3919.8,0.002]
[1760876858920,4.95260866,3919.9,3919.8,0.002]
[1760876859125,7.53960866,3919.9,3919.8,0.002]
[1760876862033,4.95260866,3919.9,3919.8,0.002]
[1760876862235,7.53960866,3919.9,3919.8,0.002]
[1760876865036,7.53960866,3919.9,3919.8,0.5768]
[1760876865037,2.27432318,3919.9,3919.8,0.5768]
[1760876865336,4.82540866,3919.9,3919.8,0.5768]
[1760876866150,2.27432318,3919.9,3919.8,0.5768]
[1760876867949,0.54632318,3919.9,3919.8,0.1292]
[1760876868119,0.54632318,3919.9,3919.8,0.5768]
[1760876871748,0.001,3920.2,3919.8,0.5768]
[1760876871950,0.54784396,3920.1,3919.8,0.002]
[1760876872167,0.001,3920.2,3920.0,0.1272]
[1760876872556,0.001,3920.2,3920.1,0.1871]
[1760876873052,0.001,3920.2,3920.1,0.6347]
[1760876873251,0.001,3920.2,3920.1,0.9662032]
[1760876874553,0.001,3920.2,3920.1,0.6347]
[1760876876733,0.001,3920.2,3920.1,0.7619]
[1760876877564,0.001,3920.2,3920.1,0.1272]
[1760876878837,2.55189026,3920.2,3920.1,0.1272]
[1760876879040,0.001,3920.2,3920.1,0.1272]
[1760876880474,0.001,3920.2,3920.1,0.5748]
[1760876880669,2.55189026,3920.2,3920.1,0.1272]
[1760876881567,2.97879026,3920.2,3920.1,0.1272]
[1760876882148,2.55189026,3920.2,3920.1,0.1272]
[1760876883257,4.27989026,3920.2,3920.1,0.1272]
[1760876883869,4.70679026,3920.2,3920.1,0.1272]
[1760876884455,4.27989026,3920.2,3920.1,0.1272]
[1760876884675,1.729,3920.2,3920.1,0.1272]
[1760876885454,4.27989026,3920.2,3920.1,0.1272]
[1760876893284,4.82715621,3920.2,3920.1,0.1272]
[1760876895688,2.27626595,3920.2,3920.1,0.1272]
[1760876896103,4.82715621,3920.2,3920.1,0.1272]
[1760876896603,2.27626595,3920.2,3920.1,0.1272]
[1760876897309,4.82715621,3920.2,3920.1,0.1272]
[1760876897894,2.27626595,3920.2,3920.1,0.1272]
[1760876898572,4.82715621,3920.2,3920.1,0.1272]
[1760876898902,2.27626595,3920.2,3920.1,0.1272]
[1760876899069,2.27626595,3920.2,3920.1,0.5837]
[1760876899908,2.27626595,3920.2,3920.1,0.7708]
[1760876899909,0.001,3920.2,3920.1,0.7708]
[1760876900602,0.001,3920.2,3920.1,1.10318854]
[1760876901383,0.001,3920.2,3920.1,0.3143]
[1760876901684,0.001,3920.2,3920.1,0.1272]
[1760876902166,0.001,3920.2,3920.1,0.5837]
[1760876902369,0.001,3920.2,3920.1,0.1272]
[1760876902776,0.001,3920.2,3920.1,0.3143]
[1760876902982,0.001,3920.2,3920.1,0.7708]
[1760876903404,0.001,3920.2,3920.1,1.10319113]
[1760876903606,0.001,3920.2,3920.1,0.7708]
[1760876903793,0.001,3920.2,3920.1,0.1272]
[1760876904609,0.4233,3920.2,3919.8,0.002]
[1760876904820,0.001,3920.2,3919.8,0.4585]
[1760876904982,0.001,3920.2,3919.9,0.30475]
[1760876905314,2.55097878,3920.1,3919.9,0.30475]
[1760876905509,2.55097878,3920.1,3919.8,0.002]
[1760876908083,2.55190297,3920.2,3919.8,0.002]
[1760876908411,2.55190297,3920.2,3919.8,0.4585]
[1760876908788,2.55190297,3920.2,3919.8,0.002]
[1760876911009,2.97420297,3920.2,3919.8,0.002]
[1760876912094,2.97326519,3920.1,3919.8,0.002]
[1760876912497,2.55096519,3920.1,3919.8,0.002]
[1760876912692,0.4223,3920.0,3919.8,0.002]
[1760876913083,2.55190704,3920.2,3919.8,0.002]
[1760876913288,2.97325991,3920.1,3919.8,0.002]
[1760876914115,0.4223,3920.1,3919.8,0.002]
[1760876914624,0.4223,3920.1,3920.0,0.1272]
[1760876915604,2.55189961,3920.2,3920.0,0.1272]
[1760876915826,0.4233,3920.2,3920.0,0.1272]
[1760876916336,0.4233,3920.2,3919.8,0.002]
[1760876916337,0.001,3920.2,3920.1,0.1272]
[1760876918904,2.97419026,3920.2,3920.1,0.1272]
[1760876921022,2.55189026,3920.2,3920.1,0.1272]
[1760876921227,0.001,3920.2,3920.1,0.1272]
[1760876921630,0.4233,3920.2,3920.1,0.1272]
[1760876921829,2.97419026,3920.2,3920.1,0.1272]
[1760876923042,0.4233,3920.2,3920.1,0.1272]
[1760876923828,2.97419026,3920.2,3920.1,0.1272]
[1760876924029,2.55189026,3920.2,3920.1,0.1272]
[1760876924221,3.52214644,3920.2,3920.1,0.1272]
[1760876924422,0.4233,3920.2,3920.1,0.1272]
[1760876924743,0.001,3920.2,3920.1,0.1272]
[1760876925430,2.97419026,3920.2,3920.1,0.1272]
[1760876927463,3.52235138,3920.2,3920.1,0.1272]
[1760876931469,3.10005138,3920.2,3920.1,0.1272]
[1760876931666,3.52235138,3920.2,3920.1,0.1272]
[1760876932033,2.55108548,3919.9,3919.8,0.002]
[1760876932239,3.09933791,3919.9,3919.8,0.002]
[1760876932540,3.52163791,3919.9,3919.8,0.002]
[1760876935667,3.09933791,3919.9,3919.8,0.002]
[1760876936259,3.52163791,3919.9,3919.8,0.002]
[1760876936465,0.54825243,3919.9,3919.8,0.002]
[1760876936774,1.728,3920.0,3919.8,0.1292]
[1760876936982,2.55103234,3920.0,3919.8,0.1292]
[1760876937158,2.55107647,3920.0,3919.8,0.1292]
[1760876937345,2.97338548,3919.9,3919.8,0.1292]
[1760876937745,0.001,3920.2,3919.8,0.1292]
[1760876937952,0.54792375,3920.1,3919.8,0.1292]
[1760876938177,0.54792375,3920.0,3919.8,0.1292]
[1760876938376,0.001,3920.2,3920.1,0.1871]
[1760876938576,0.54892257,3920.2,3920.1,0.1871]
[1760876938763,0.54892257,3920.2,3920.1,0.7482]
[1760876938969,3.09981283,3920.2,3920.1,0.1272]
[1760876941605,2.55108548,3919.9,3919.8,0.002]
[1760876941977,2.55108548,3919.9,3919.8,0.1292]
[1760876942688,3.09894669,3919.9,3919.8,0.1292]
[1760876943201,3.52124669,3919.9,3919.8,0.1292]
[1760876943386,3.09894669,3919.9,3919.8,0.1292]
[1760876945412,3.52124669,3919.9,3919.8,0.1292]
[1760876946610,3.52124669,3919.9,3919.8,0.002]
[1760876947513,5.24924669,3919.9,3919.8,0.002]
[1760876947673,5.37644669,3919.9,3919.8,0.002]
[1760876949628,4.95414669,3919.9,3919.8,0.002]
[1760876949793,2.27586121,3919.9,3919.8,0.002]
[1760876950000,0.54786121,3919.9,3919.8,0.4749]
[1760876950230,0.54786121,3920.1,3919.8,0.4749]
[1760876950430,2.5518968,3920.2,3919.9,0.4446]
[1760876950600,0.54784524,3920.1,3920.0,0.1272]
[1760876954134,0.001,3920.2,3920.0,0.5718]
[1760876954335,0.001,3920.2,3920.1,3.37165533]
[1760876954543,0.001,3920.2,3920.1,4.72440893]
[1760876956611,0.001,3920.2,3920.1,6.58013178]
[1760876956832,0.001,3920.2,3920.1,9.24162223]
[1760876957721,0.001,3920.9,3920.8,3.18409989]
[1760876957918,0.001,3920.9,3920.8,7.49709989]
[1760876958115,0.001,3920.9,3920.8,8.81860988]
[1760876958942,0.001,3920.9,3920.8,8.69140988]
[1760876959263,0.001,3920.9,3920.8,8.81860988]
[1760876961046,0.001,3922.3,3920.9,4.91203484]
[1760876961248,0.001,3922.3,3920.9,5.35663484]
[1760876961545,0.001,3922.3,3920.9,6.75881565]
[1760876965150,0.001,3922.3,3921.8,3.18344955]
[1760876965328,0.001,3922.3,3921.8,5.90563855]
[1760876965523,0.001,3922.3,3921.8,8.06624955]
[1760876967126,0.001,3922.3,3921.8,18.31324955]
[1760876967327,0.001,3922.3,3921.8,20.40978485]
[1760876968031,0.001,3922.3,3921.8,19.96518485]
[1760876968537,0.001,3922.3,3921.8,20.40978485]
[1760876969256,0.001,3922.3,3921.8,19.96518485]
[1760876969554,0.412,3922.1,3921.8,19.96518485]
[1760876970350,0.413,3921.9,3921.8,18.23718485]
[1760876971126,0.413,3921.9,3921.8,15.6873353]
[1760876971530,0.413,3921.9,3921.8,18.23718485]